bitfinex/quotes_ETHUSD_20260126
["timestamp","ask_amount","ask_price","bid_price","bid_amount"]
[1769411840932,1.2104593,2900.3,2899.2,0.88319746]
[1769411841262,1.2104593,2900.3,2899.2,0.88319998]
[1769411841565,1.2112593,2900.4,2899.4,0.86222893]
[1769411841863,1.2112593,2900.4,2899.5,0.02090643]
[1769411844063,0.0008,2900.4,2899.5,0.88310348]
[1769411844287,1.2104593,2900.3,2899.2,0.02090643]
[1769411844462,1.2104593,2900.1,2899.2,0.88320562]
[1769411844764,1.2104593,2900.1,2899.2,0.02090643]
[1769411844951,1.2104593,2900.1,2899.2,0.88320373]
[1769411845150,1.2104593,2900.1,2899.2,0.02090643]
[1769411845350,1.2104593,2900.1,2899.3,0.0209057]
[1769411846038,1.2104593,2900.1,2899.0,0.86336333]
[1769411846230,1.2104593,2900.1,2899.0,0.001]
[1769411846436,1.2104593,2900.0,2899.0,0.001]
[1769411847960,1.2104593,2899.9,2899.0,0.001]
[1769411848346,1.2104593,2900.3,2899.4,0.001]
[1769411848666,1.2124593,2900.2,2899.4,0.001]
[1769411848958,1.2104593,2900.0,2899.0,0.03549465]
[1769411849281,1.2104593,2900.0,2899.0,0.001]
[1769411850145,1.2104593,2899.9,2899.0,0.001]
[1769411850350,0.20725436,2899.8,2899.0,0.001]
[1769411850546,1.23642426,2900.0,2899.0,0.001]
[1769411850752,1.2104593,2900.0,2899.0,0.001]
[1769411851438,1.23642426,2900.0,2899.0,0.001]
[1769411851983,1.2104593,2899.9,2899.0,0.001]
[1769411852470,1.2104593,2899.7,2898.0,1.35573392]
[1769411852773,0.92482653,2899.8,2898.3,0.8625721]
[1769411852774,1.2104593,2899.5,2898.3,0.8625721]
[1769411853065,1.2104593,2899.6,2898.4,0.89703509]
[1769411853841,1.2104593,2899.6,2898.4,0.89704229]
[1769411854037,1.2104593,2899.6,2898.4,0.03450177]
[1769411854242,1.2104593,2899.6,2898.3,7.29551729]
[1769411854452,1.2104593,2899.4,2898.3,7.29551729]
[1769411854743,0.86217546,2899.7,2898.3,7.29551729]
[1769411854744,1.26631836,2899.8,2899.0,6.4329555]
[1769411855058,1.26631836,2899.8,2898.7,6.4329555]
[1769411856747,1.26631836,2899.8,2898.8,0.86242583]
[1769411857084,0.88998168,2900.2,2898.8,0.86242583]
[1769411857085,1.26631836,2900.1,2899.0,6.4329555]
[1769411858665,0.002,2900.2,2899.1,0.86233658]
[1769411859181,1.26831836,2900.2,2899.1,0.86233658]
[1769411859385,0.002,2900.2,2899.4,6.4329555]
[1769411859686,0.002,2900.2,2899.4,7.75157223]
[1769411860053,0.002,2900.2,2899.4,6.42783205]
[1769411860655,0.002,2900.2,2899.5,0.86321762]
[1769411861576,0.002,2900.2,2899.5,0.001]
[1769411862303,1.29428332,2900.2,2898.9,0.01603156]
[1769411862461,1.26831836,2900.2,2899.1,0.86231826]
[1769411862798,1.26831836,2900.2,2899.1,0.87834816]
[1769411862965,1.26831836,2900.2,2899.1,0.0160299]
[1769411863180,1.26831836,2900.2,2899.1,0.87836173]
[1769411864607,1.26831836,2900.2,2899.1,0.0160299]
[1769411864796,1.26831836,2900.2,2898.8,3.4496767]
[1769411864797,1.26631836,2900.1,2898.8,1.33977118]
[1769411864975,1.26631836,2900.1,2899.1,0.01602934]
[1769411865804,1.48194525,2900.1,2899.0,0.01604709]
[1769411866006,1.48194525,2900.1,2898.9,0.87842922]
[1769411866197,1.48194525,2900.1,2898.9,0.01604763]
[1769411866403,1.48194525,2900.1,2898.8,0.87845521]
[1769411866404,1.26631836,2899.9,2898.8,0.87845521]
[1769411866580,1.26631836,2899.9,2898.8,0.01604763]
[1769411866806,1.50331345,2899.9,2898.8,0.01604763]
[1769411866989,1.26631836,2899.7,2898.6,0.87850434]
[1769411867208,1.26631836,2899.7,2898.6,0.87853199]
[1769411867389,1.26631836,2899.7,2898.2,1.32374018]
[1769411867390,1.26631836,2899.7,2898.2,0.01604873]
[1769411867787,1.26631836,2899.5,2898.0,0.87869258]
[1769411867990,1.26631836,2899.5,2898.1,3.45052081]
[1769411868308,1.26631836,2899.5,2898.2,1.22528957]
[1769411868482,1.29228332,2899.8,2898.6,0.86248121]
[1769411868684,0.88809867,2899.8,2898.6,0.01604485]
[1769411869001,0.88809867,2899.8,2898.5,0.8785414]
[1769411869002,1.26631836,2899.7,2898.5,0.8785414]
[1769411869180,1.26631836,2899.5,2898.5,0.01604485]
[1769411869380,1.26631836,2899.5,2898.4,0.87857627]
[1769411869587,1.26631836,2899.5,2898.4,0.87857569]
[1769411870005,1.26631836,2899.5,2898.5,0.86250989]
[1769411870378,1.26631836,2899.5,2898.4,0.87856295]
[1769411870910,1.26631836,2899.5,2898.3,0.01604485]
[1769411871222,1.26631836,2899.5,2898.0,4.7743201]
[1769411871223,1.26631836,2899.4,2898.0,0.86263453]
[1769411871529,1.26631836,2899.4,2898.1,0.86261492]
[1769411871882,1.26631836,2899.4,2898.0,0.86263724]
[1769411872089,1.26631836,2899.2,2898.6,0.001]
[1769411872588,1.26631836,2899.2,2897.9,0.8626722]
[1769411872786,1.26631836,2899.2,2897.8,3.45088222]
[1769411873011,0.21285467,2899.3,2898.0,0.8626488]
[1769411873012,1.47917303,2899.3,2898.0,0.8626488]
[1769411874709,3.6921639,2899.6,2898.4,1.55731048]
[1769411874710,0.002,2899.6,2898.4,1.55731048]
[1769411875083,0.002,2899.6,2898.6,1.32374018]
[1769411876622,0.002,2900.2,2899.0,1.32374018]
[1769411877329,0.002,2900.2,2899.1,0.89683004]
[1769411878124,0.002,2900.2,2899.2,1.32374018]
[1769411878328,0.002,2900.2,2899.3,0.03449108]
[1769411879232,0.002,2900.2,2899.4,0.86224736]
[1769411879410,0.002,2900.2,2899.3,0.03449108]
[1769411879411,0.002,2900.2,2899.3,0.89674755]
[1769411879616,1.26831836,2900.2,2899.3,0.86225647]
[1769411879812,1.26831836,2900.2,2899.4,0.03448989]
[1769411880112,1.26631836,2900.0,2899.0,0.89683927]
[1769411880313,1.26631836,2900.0,2898.9,3.44956469]
[1769411880314,0.02796496,2900.2,2899.1,1.32374018]
[1769411880505,0.002,2900.2,2899.2,0.89677942]
[1769411880839,0.002,2900.2,2899.3,0.86226793]
[1769411881133,0.002,2900.2,2899.4,0.03448989]
[1769411881338,0.002,2900.2,2899.4,0.89672136]
[1769411882104,0.002,2900.2,2899.4,0.03448989]
[1769411882302,0.002,2900.2,2899.4,0.89672061]
[1769411884207,0.002,2900.2,2899.5,1.32374018]
[1769411884429,0.002,2900.2,2899.6,0.00855341]
[1769411884744,0.002,2900.0,2899.6,0.00855341]
[1769411884947,0.002,2900.0,2899.2,0.8622842]
[1769411885118,0.002,2900.0,2899.3,0.02576837]
[1769411885318,0.002,2900.0,2899.2,0.88805377]
[1769411885520,0.002,2900.0,2898.5,0.86248944]
[1769411885521,1.44536003,2900.0,2898.5,0.86248944]
[1769411885847,1.48846347,2900.0,2898.6,0.86347501]
[1769411886151,1.48846347,2900.0,2898.6,0.86346505]
[1769411886307,1.48846347,2900.0,2898.6,0.001]
[1769411886508,1.48846347,2900.0,2898.6,0.86347483]
[1769411886706,1.48846347,2900.0,2898.6,0.001]
[1769411887549,1.44336003,2899.8,2898.6,0.001]
[1769411887850,1.48646645,2899.8,2898.6,0.001]
[1769411888254,1.44336003,2899.8,2898.6,0.001]
[1769411888431,0.23485637,2899.7,2898.6,0.001]
[1769411888613,1.44336003,2899.8,2898.6,0.001]
[1769411889543,1.44336003,2899.6,2898.6,0.001]
[1769411889905,1.50605814,2899.6,2898.6,0.001]
[1769411890130,1.50605814,2899.6,2897.9,0.8626773]
[1769411890330,1.50605814,2899.6,2897.9,0.86267475]
[1769411890529,0.86215815,2899.7,2898.0,1.4512129]
[1769411890530,1.68018166,2899.5,2898.0,1.4512129]
[1769411890743,1.68018166,2899.5,2898.1,0.86260774]
[1769411891117,1.68018166,2899.5,2898.0,0.86265761]
[1769411891541,1.44336003,2899.3,2897.6,0.86278299]
[1769411893050,1.44336003,2899.3,2897.7,1.4512129]
[1769411893240,1.44336003,2899.3,2897.8,0.23139959]
[1769411893443,1.44336003,2899.3,2897.8,1.68261249]
[1769411893753,1.44336003,2899.3,2898.0,1.4512129]
[1769411894311,0.23682163,2899.5,2898.0,1.4512129]
[1769411894518,1.48646645,2899.8,2898.2,1.4512129]
[1769411894715,1.48646645,2899.8,2898.4,1.4512129]
[1769411895227,1.48646645,2899.8,2898.4,1.82822826]
[1769411895439,1.44336003,2899.8,2898.4,1.82822826]
[1769411895716,0.002,2900.0,2898.6,1.4512129]
[1769411895915,1.74111049,2899.9,2898.7,0.2313728]
[1769411896137,1.44336003,2899.7,2898.5,0.86251509]
[1769411896512,0.04310939,2899.6,2898.5,0.86251509]
[1769411896869,0.04310939,2899.6,2898.4,0.86252445]
[1769411897144,1.44336003,2899.5,2898.4,0.86252445]
[1769411897442,1.54449046,2899.4,2898.4,0.86252445]
[1769411897625,1.54449046,2899.4,2898.2,3.4503842]
[1769411897626,1.54449046,2899.4,2898.1,3.78]
[1769411897826,1.54449046,2899.4,2898.2,3.78]
[1769411897827,1.5013781,2899.4,2898.2,3.78]
[1769411898022,1.5013781,2899.2,2898.0,0.8636639]
[1769411898635,1.5013781,2899.6,2898.2,1.48392636]
[1769411899136,0.0431079,2899.7,2898.2,1.48392636]
[1769411899137,1.54448898,2899.5,2898.2,1.48392636]
[1769411899339,1.5013781,2899.5,2898.2,1.48392636]
[1769411899534,0.002,2899.8,2898.2,1.48392636]
[1769411899739,0.002,2899.8,2898.4,1.48392636]
[1769411899934,0.18035354,2899.8,2898.5,1.75627799]
[1769411900140,0.18035354,2899.8,2898.5,2.13329335]
[1769411901018,0.002,2899.8,2898.7,1.48392636]
[1769411901448,0.002,2899.8,2898.5,0.27235163]
[1769411901646,0.002,2899.8,2898.6,0.86248533]
[1769411902633,0.002,2899.8,2898.8,1.48392636]
[1769411902840,0.002,2899.8,2898.9,0.18941084]
[1769411903751,0.002,2899.8,2898.6,0.86248533]
[1769411904050,0.002,2899.8,2898.7,1.48392636]
[1769411904226,0.002,2899.8,2898.7,1.89410839]
[1769411904429,0.002,2899.8,2898.8,1.48392636]
[1769411904761,0.002,2900.0,2899.0,1.48392636]
[1769411904954,0.002,2900.0,2898.6,0.86248533]
[1769411904955,0.002,2900.0,2898.7,1.48392636]
[1769411905128,0.002,2900.0,2898.8,0.23464117]
[1769411906262,0.002,2900.0,2898.9,0.86239608]
[1769411906466,0.002,2900.0,2898.9,2.34632244]
[1769411906759,0.002,2900.0,2899.0,1.48392636]
[1769411906930,0.002,2900.2,2899.2,1.48392636]
[1769411908559,0.002,2900.2,2899.3,0.8622771]
[1769411908935,0.0028,2900.4,2899.4,1.48392636]
[1769411910149,0.0028,2900.4,2899.3,0.8622771]
[1769411910150,0.002,2900.7,2899.6,1.48392636]
[1769411910354,0.002,2900.2,2899.6,1.48392636]
[1769411910550,0.002,2900.2,2899.7,0.86215815]
[1769411910766,0.001,2900.2,2899.7,0.86215815]
[1769411910967,2.9e-06,2900.2,2899.7,0.86215815]
[1769411911166,0.002,2900.7,2899.7,0.86215815]
[1769411911167,0.002,2901.0,2899.7,0.86215815]
[1769411911366,0.002,2901.0,2899.8,1.48392636]
[1769411911543,0.002,2901.0,2899.8,2.20592636]
[1769411911743,0.002,2901.0,2899.7,0.86215815]
[1769411911744,1.5033781,2901.0,2899.7,0.86215815]
[1769411912061,1.5033781,2901.0,2899.7,3.06808451]
[1769411914960,1.5033781,2901.0,2899.7,2.34608451]
[1769411915553,1.5033781,2901.0,2899.1,3.44929111]
[1769411915554,1.51774192,2900.7,2899.4,1.51154177]
[1769411915869,1.51774192,2900.7,2899.7,0.86215015]
[1769411916667,1.51774192,2900.7,2899.5,0.86221762]
[1769411917581,1.58244003,2901.0,2899.5,0.86221762]
[1769411917785,1.62552862,2901.0,2899.5,0.86221762]
[1769411919462,0.04508859,2901.0,2899.6,1.51154177]
[1769411919863,0.04508859,2901.0,2899.7,1.74511207]
[1769411919864,0.002,2901.0,2899.7,1.74511207]
[1769411920170,1.51974192,2901.0,2899.8,0.17451121]
[1769411920767,1.51974192,2901.0,2899.9,0.86209869]
[1769411921265,0.002,2901.0,2899.9,0.86209869]
[1769411922271,0.002,2900.8,2899.9,0.86209869]
[1769411924475,1.51974192,2900.8,2899.9,0.86209869]
[1769411924857,1.51974192,2900.8,2899.6,3.44973357]
[1769411925064,1.51974192,2900.8,2899.8,0.86212274]
[1769411925383,1.51974192,2900.8,2899.7,0.86215363]
[1769411925582,1.51774192,2900.7,2899.6,0.001]
[1769411925889,1.51774192,2900.5,2899.6,0.001]
[1769411927682,0.06448656,2901.1,2899.6,0.001]
[1769411927683,1.59548194,2901.7,2899.6,0.69255666]
[1769411927887,1.51774192,2904.9,2902.2,1.51154177]
[1769411928103,1.51774192,2904.9,2902.1,0.06269811]
[1769411928104,1.42104615,2904.4,2904.1,2.92004327]
[1769411928414,1.42104615,2904.4,2903.6,0.06269811]
[1769411928415,1.51774192,2907.1,2904.9,0.06269811]
[1769411928568,2.44041008,2907.1,2905.0,2.57464043]
[1769411928745,1.51774192,2906.3,2905.1,0.31510556]
[1769411928948,0.43162542,2907.0,2905.2,0.31510556]
[1769411929176,0.43162542,2907.0,2905.3,0.31510556]
[1769411929378,0.43162542,2907.0,2905.0,0.722]
[1769411929379,0.0008,2907.4,2905.0,0.722]
[1769411929380,0.0201482,2908.4,2906.3,1.33250832]
[1769411929678,0.0201482,2908.4,2906.9,8.35383682]
[1769411929855,1.51854192,2908.3,2907.0,0.31510556]
[1769411930049,0.0008,2908.3,2907.1,0.31510556]
[1769411930248,0.0008,2909.2,2907.8,8.35383682]
[1769411930452,1.56108777,2909.9,2907.9,1.27067586]
[1769411930650,0.02366951,2909.9,2908.5,0.2335703]
[1769411930849,0.02366951,2909.9,2908.4,8.35383682]
[1769411930850,0.02366951,2909.9,2908.6,0.31510556]
[1769411931049,0.02366951,2909.9,2908.4,8.35383682]
[1769411931050,1.53741826,2909.7,2908.7,0.31510556]
[1769411931283,1.53741826,2909.7,2907.7,14.5]
[1769411931284,0.06269811,2911.4,2909.1,8.35383682]
[1769411931482,1.51774192,2911.0,2909.2,0.2335703]
[1769411931681,1.51774192,2911.6,2910.0,0.06269811]
[1769411932182,2.62620623,2912.8,2909.7,8.35383682]
[1769411932183,1.51774192,2912.2,2909.7,8.35383682]
[1769411932552,1.51774192,2912.2,2909.6,0.722]
[1769411932553,1.51774192,2912.0,2909.4,0.06269811]
[1769411932753,1.51774192,2911.5,2909.1,0.92206166]
[1769411932958,1.51774192,2911.5,2909.3,0.06269811]
[1769411933153,0.06269811,2912.1,2908.4,0.53298825]
[1769411933154,1.51774192,2910.6,2908.4,0.53298825]
[1769411933468,0.06269811,2910.7,2907.9,8.35383682]
[1769411933469,1.51774192,2910.4,2907.9,8.35383682]
[1769411933668,1.51774192,2909.6,2907.1,0.85995737]
[1769411933869,1.51774192,2909.2,2907.1,0.43626674]
[1769411934069,1.51774192,2909.0,2906.6,0.06269811]
[1769411934251,1.51774192,2909.0,2906.7,0.86007379]
[1769411934456,1.51774192,2909.0,2906.9,0.06269811]
[1769411934652,0.06269811,2909.3,2906.2,0.06269811]
[1769411934653,1.51774192,2908.6,2906.2,0.06269811]
[1769411934851,1.51274675,2908.6,2906.6,0.06269811]
[1769411935053,1.51274675,2908.6,2906.8,0.06269811]
[1769411935252,1.51274675,2908.6,2906.4,0.06269811]
[1769411935454,1.51274675,2908.6,2906.2,0.06269811]
[1769411935455,1.51274675,2908.6,2905.9,9.27685099]
[1769411935655,1.51274675,2908.6,2906.3,0.06269811]
[1769411935656,1.51774192,2908.4,2906.3,0.06269811]
[1769411935882,1.51774192,2908.4,2906.1,0.06269811]
[1769411936061,1.51774192,2908.4,2906.3,0.06269811]
[1769411936261,1.51774192,2908.4,2906.1,0.06269811]
[1769411936262,1.51774192,2908.4,2906.4,0.06269811]
[1769411936462,1.51774192,2908.4,2906.6,0.06269811]
[1769411936789,1.51774192,2908.4,2906.4,0.06269811]
[1769411936790,1.51774192,2908.2,2906.4,0.06269811]
[1769411936975,1.51774192,2908.2,2906.3,0.06269811]
[1769411937669,1.51774192,2908.0,2906.5,0.06269811]
[1769411938215,1.51774192,2908.0,2902.6,0.06269811]
[1769411938216,1.51774192,2905.8,2902.6,0.06269811]
[1769411938493,1.51774192,2905.8,2902.6,0.01193588]
[1769411938494,0.06269811,2904.3,2902.6,0.01193588]
[1769411938659,0.06269811,2904.3,2901.7,0.03446255]
[1769411938660,0.06269811,2903.5,2901.7,0.03446255]
[1769411938860,0.06269811,2903.4,2901.8,0.03446136]
[1769411939092,0.06269811,2903.5,2900.9,0.06269811]
[1769411939279,0.06269811,2903.5,2900.2,1.51154177]
[1769411939280,0.06269811,2902.9,2900.2,1.51154177]
[1769411939483,0.06269811,2902.7,2900.6,0.01719468]
[1769411939669,0.06269811,2902.5,2899.7,0.06269811]
[1769411939865,0.06269811,2902.5,2899.8,0.01721369]
[1769411940072,0.06269811,2901.9,2899.8,0.01721369]
[1769411940271,0.721,2901.8,2899.6,0.001]
[1769411940473,0.06269811,2901.1,2899.6,0.001]
[1769411940666,1.51774192,2901.9,2899.6,0.001]
[1769411940973,0.91169811,2901.8,2899.6,0.001]
[1769411941173,0.242944,2901.7,2899.7,0.06269811]
[1769411941400,0.721,2901.8,2899.8,0.01722322]
[1769411941599,0.86156391,2901.7,2899.8,0.01722322]
[1769411942297,3.44549367,2902.4,2900.3,0.06269811]
[1769411942482,0.86129676,2902.6,2900.4,0.0172042]
[1769411942689,0.65452258,2902.5,2900.4,0.0172042]
[1769411943090,0.71722069,2902.5,2900.4,0.0172042]
[1769411943293,0.65452258,2902.5,2900.4,0.0172042]
[1769411943481,0.721,2902.4,2900.2,0.0172042]
[1769411943676,0.86135611,2902.4,2900.2,0.8791924]
[1769411943998,0.56823032,2902.3,2900.2,0.8792129]
[1769411944194,0.00348,2901.9,2900.2,0.87921018]
[1769411944394,0.00348,2901.9,2900.2,0.0172042]
[1769411944770,0.00348,2901.9,2900.2,0.87921209]
[1769411944976,0.00348,2901.9,2900.2,0.0172042]
[1769411945805,0.06269811,2901.8,2900.1,0.01721252]
[1769411946174,0.00348,2901.9,2900.1,0.01721252]
[1769411947106,0.00348,2901.9,2900.4,0.06269811]
[1769411947408,0.00348,2901.9,2900.5,0.01720836]
[1769411947584,0.00348,2901.9,2900.6,0.5]
[1769411947785,0.00348,2901.9,2900.7,0.0172048]
[1769411948909,0.00348,2901.9,2900.7,0.01720361]
[1769411949095,0.86118591,2903.0,2900.8,0.06269811]
[1769411949419,0.86118591,2903.0,2900.6,1.42458801]
[1769411949420,0.06269811,2902.6,2900.9,0.01718816]
[1769411949777,0.86132644,2902.5,2900.9,0.01718816]
[1769411950275,0.86132644,2902.5,2900.8,0.87901621]
[1769411950587,0.90439276,2902.5,2900.8,0.87901621]
[1769411950785,0.43488561,2902.9,2900.9,0.92449816]
[1769411950985,0.86119933,2903.0,2901.0,0.43717042]
[1769411951175,0.04306187,2902.8,2901.1,0.06269811]
[1769411951376,0.86115441,2903.1,2901.1,0.06269811]
[1769411951377,0.04305742,2903.1,2901.2,0.01718519]
[1769411951676,0.06269811,2903.7,2901.2,0.01718519]
[1769411951677,0.0430589,2903.0,2901.2,0.01718519]
[1769411951878,0.92390586,2902.9,2901.2,0.01718519]
[1769411952089,0.06269811,2902.7,2901.0,0.01718519]
[1769411952291,0.04306483,2902.6,2901.0,0.01718519]
[1769411952489,0.04306483,2902.6,2900.5,0.86190786]
[1769411952490,0.04306483,2902.6,2900.7,0.8618314]
[1769411952700,0.04306483,2902.6,2900.8,0.01719197]
[1769411953101,0.06269811,2902.5,2900.7,0.86185974]
[1769411953302,0.0430678,2902.4,2900.8,0.01719231]
[1769411954180,0.86138579,2902.3,2900.8,0.01719231]
[1769411954380,0.47806475,2902.2,2900.8,0.01719231]
[1769411955514,0.47806475,2902.2,2900.6,0.01719231]
[1769411955819,0.47806475,2902.2,2900.0,0.129]
[1769411955820,0.06269811,2902.1,2900.4,0.01720301]
[1769411956015,0.04307374,2902.0,2900.4,0.01720301]
[1769411956177,0.92420264,2901.9,2900.1,0.01720776]
[1769411956375,0.48440616,2901.8,2900.1,0.01720776]
[1769411956600,0.06269811,2901.7,2900.1,0.01720776]
[1769411956809,0.04307968,2901.6,2900.1,0.01720776]
[1769411956980,0.04307968,2901.6,2900.1,0.87923664]
[1769411957376,0.04307968,2901.6,2900.4,0.001]
[1769411957907,0.04307819,2901.7,2900.4,0.001]
[1769411958225,0.04307968,2901.6,2900.4,0.001]
[1769411958523,0.04307374,2902.0,2900.4,0.001]
[1769411958708,0.52180527,2902.0,2900.4,0.01820954]
[1769411959299,0.04307522,2901.9,2900.4,0.01820954]
[1769411959831,0.04507077,2902.2,2900.4,0.01820954]
[1769411960194,0.90648796,2902.2,2900.5,0.86192035]
[1769411960430,0.04507077,2902.2,2900.6,0.01720301]
[1769411960803,0.90649152,2902.2,2900.6,0.01720301]
[1769411961003,0.43520484,2902.1,2900.6,0.01720301]
[1769411961206,0.04307374,2902.0,2900.6,0.01720301]
[1769411961410,0.002,2902.2,2900.6,0.01720301]
[1769411961604,0.86343541,2902.2,2900.6,0.01720301]
[1769411961936,0.04307225,2902.1,2900.6,0.01720301]
[1769411962093,0.04307225,2902.1,2900.4,0.01820301]
[1769411962293,0.86147484,2902.0,2900.4,0.01820301]
[1769411962624,0.47811987,2901.9,2900.4,0.88015208]
[1769411962793,0.47811987,2901.9,2900.4,0.01820301]
[1769411963099,0.47811987,2901.9,2900.4,0.88014221]
[1769411963305,0.47811987,2901.9,2900.4,0.01820301]
[1769411963609,0.47811987,2901.9,2900.4,0.001]
[1769411963942,0.06269811,2901.3,2899.6,0.001]
[1769411964236,0.86168269,2901.3,2899.6,0.001]
[1769411964395,0.44904704,2901.2,2899.6,0.001]
[1769411964796,0.06269811,2901.0,2899.6,0.001]
[1769411965120,0.01193588,2900.9,2899.6,0.001]
[1769411966421,0.92452932,2900.8,2899.6,0.001]
[1769411966622,0.06269811,2900.6,2899.6,0.001]
[1769411966823,0.01193588,2900.5,2899.6,0.001]
[1769411967129,0.06269811,2900.2,2898.7,1.221575]
[1769411967299,0.01193588,2900.1,2898.8,0.31569494]
[1769411967630,0.01193588,2900.1,2898.9,0.31569494]
[1769411967818,0.01193588,2900.1,2899.0,0.31569494]
[1769411968019,0.01193588,2900.1,2898.7,1.221575]
[1769411968625,0.86206896,2900.0,2898.7,1.221575]
[1769411968924,0.44416123,2899.9,2898.7,1.221575]
[1769411969141,0.06269811,2899.8,2898.7,1.221575]
[1769411969318,0.06269811,2899.6,2898.0,0.001]
[1769411969496,0.06269811,2899.4,2898.0,0.001]
[1769411969693,0.01193588,2899.3,2898.0,0.001]
[1769411971297,0.87421912,2899.3,2898.0,0.001]
[1769411971705,0.87421389,2899.3,2898.0,0.001]
[1769411972214,0.01193588,2899.3,2898.0,0.001]
[1769411972424,0.87421672,2899.3,2898.0,0.001]
[1769411973332,0.01193588,2899.3,2898.0,0.001]
[1769411973531,0.8742243,2899.3,2898.0,0.001]
[1769411973797,0.43232217,2899.2,2898.0,0.001]
[1769411974037,0.01193588,2899.1,2898.0,0.001]
[1769411974443,0.07463399,2899.1,2898.0,0.001]
[1769411974727,0.06269811,2898.9,2896.9,0.86299147]
[1769411974934,0.01193588,2898.8,2896.9,0.86299147]
[1769411975803,0.06269811,2898.7,2896.9,0.86299147]
[1769411976129,0.01193588,2898.6,2896.8,2.64852326]
[1769411976513,0.01193588,2898.6,2896.8,1.78552361]
[1769411976824,0.01193588,2898.6,2896.3,14.628]
[1769411976825,0.06269811,2898.1,2896.5,0.86310269]
[1769411977030,0.01193588,2898.0,2896.3,2.91696161]
[1769411977206,0.01193588,2898.0,2896.4,0.86312978]
[1769411977526,0.01193588,2898.0,2896.3,0.863169]
[1769411977527,0.06269811,2897.9,2896.3,0.863169]
[1769411977827,0.06269811,2897.7,2896.3,0.43170059]
[1769411978043,0.01193588,2897.6,2896.1,0.001]
[1769411978360,0.01193588,2897.6,2895.8,2.05380204]
[1769411978493,0.01193588,2897.6,2896.6,0.86306453]
[1769411978700,0.01193588,2897.6,2896.2,2.05380204]
[1769411979101,0.87472464,2897.6,2896.1,0.8632287]
[1769411979322,0.50155358,2897.5,2896.0,0.86325823]
[1769411979495,0.01193588,2897.4,2896.0,0.8632554]
[1769411979796,0.01193588,2897.4,2895.7,2.05380204]
[1769411979994,0.01193588,2897.4,2896.2,2.05380204]
[1769411980231,0.01193588,2897.4,2896.6,0.86307898]
[1769411980444,0.01193588,2897.4,2896.6,1.2946344]
[1769411980735,0.01193588,2897.4,2896.6,3.34843644]
[1769411981031,0.90570669,2898.3,2896.7,2.05380204]
[1769411981032,0.04312873,2898.3,2896.7,2.05380204]
[1769411981213,0.86250392,2898.6,2896.7,2.05380204]
[1769411981396,0.04312575,2898.5,2896.7,2.05380204]
[1769411981600,0.04312575,2898.5,2896.8,2.38864568]
[1769411982062,0.04512575,2898.5,2896.8,2.38864568]
[1769411982771,0.06269811,2898.4,2896.9,0.86299147]
[1769411983078,0.04312873,2898.3,2896.9,0.86299147]
[1769411983655,0.04312873,2898.3,2896.8,3.25164694]
[1769411983830,0.06269811,2898.2,2896.9,0.32516469]
[1769411984037,0.0431317,2898.1,2896.9,0.32516469]
[1769411984232,0.04312724,2898.4,2896.9,0.32516469]
[1769411984638,0.06269811,2898.3,2896.9,0.32516469]
[1769411984857,0.04313021,2898.2,2896.9,1.18813583]
[1769411985051,0.04313021,2898.2,2897.0,0.46401288]
[1769411986144,0.90574177,2898.2,2897.0,0.46401288]
[1769411986350,0.04313021,2898.2,2896.9,0.86298785]
[1769411986526,0.10582981,2898.1,2896.2,5.50750548]
[1769411986726,0.0431317,2898.1,2896.4,2.91694249]
[1769411986955,0.0431317,2898.1,2896.5,2.05380204]
[1769411987365,0.96846908,2898.1,2896.5,2.05380204]
[1769411987671,0.10582981,2898.1,2896.6,0.29169425]
[1769411987865,0.04313021,2898.2,2896.6,2.34549629]
[1769411988972,0.0431317,2898.1,2896.7,0.86305105]
[1769411989136,0.04312724,2898.4,2896.8,2.05380204]
[1769411989331,0.04312724,2898.4,2896.9,0.29168531]
[1769411989734,0.90567599,2898.4,2896.9,0.29168531]
[1769411990164,0.04312724,2898.4,2896.9,0.29168531]
[1769411990359,0.06269811,2898.2,2896.9,0.29168531]
[1769411990558,0.0431317,2898.1,2896.9,0.29168531]
[1769411990766,0.04312873,2898.3,2897.0,0.23454874]
[1769411990956,0.04312873,2898.3,2897.1,0.86293189]
[1769411991467,0.06269811,2898.2,2897.0,0.23454874]
[1769411991666,0.0431317,2898.1,2896.9,0.86298617]
[1769411991844,0.0431317,2898.1,2897.0,0.86294073]
[1769411992371,0.0431317,2898.1,2896.9,0.86296922]
[1769411992533,0.0431317,2898.1,2896.9,0.862966]
[1769411992733,0.0431317,2898.1,2896.8,0.86300032]
[1769411992963,0.0431317,2898.1,2896.9,0.86299147]
[1769411993278,0.0431317,2898.1,2896.8,1.29454141]
[1769411993770,0.90576972,2898.1,2896.8,1.29454141]
[1769411993967,0.06269811,2898.0,2896.8,0.43152021]
[1769411994171,0.04313468,2897.9,2896.7,0.86303453]
[1769411994472,0.04313468,2897.9,2896.6,0.86306062]
[1769411994860,0.86272344,2897.8,2896.5,2.91689753]
[1769411995061,0.04313766,2897.7,2896.5,2.05380204]
[1769411995360,0.47880447,2897.7,2896.5,2.91690931]
[1769411995574,0.04313766,2897.7,2896.5,0.86310727]
[1769411995968,0.04313766,2897.7,2896.4,0.86312577]
[1769411996269,0.04313766,2897.7,2896.5,0.86310836]
[1769411996589,0.04313766,2897.7,2896.3,0.86316206]
[1769411996791,0.04313766,2897.7,2896.2,0.86418363]
[1769411997090,0.86281276,2897.5,2896.2,0.001]
[1769411997294,0.48080777,2897.4,2896.2,0.001]
[1769411998801,0.54350588,2897.4,2896.2,0.001]
[1769411998998,0.86287232,2897.3,2896.2,0.001]
[1769411999200,1.40635486,2897.4,2896.2,0.001]
[1769412000199,0.48080777,2897.4,2896.2,2.00480204]
[1769412000377,0.04313766,2897.7,2896.2,2.00480204]
[1769412000779,0.1058313,2898.0,2896.2,2.00480204]
[1769412000980,0.04313319,2898.0,2896.3,0.86317025]
[1769412001162,0.90580251,2898.0,2896.4,2.05380204]
[1769412001368,0.43563418,2897.9,2896.5,2.34549927]
[1769412001569,0.04313617,2897.8,2896.5,2.34549927]
[1769412003098,0.04313617,2897.8,2896.6,0.86308085]
[1769412003300,0.04313766,2897.7,2896.7,2.05380204]
[1769412003601,0.0431317,2898.1,2896.7,2.05380204]
[1769412005089,3.45206888,2898.5,2896.7,2.05380204]
[1769412005090,0.04512575,2898.5,2897.0,2.37150586]
[1769412005278,0.04312873,2898.3,2897.0,2.37150586]
[1769412005821,0.04312873,2898.3,2897.0,2.14086041]
[1769412005983,0.04312873,2898.3,2896.9,1.58599147]
[1769412005984,0.04312873,2898.3,2897.1,2.74419105]
[1769412006299,0.002,2898.1,2897.1,2.74419105]
[1769412007190,0.002,2898.1,2897.2,0.86290211]
[1769412007391,0.002,2898.1,2897.2,3.23440797]